[Event "Betsys MČR v online bleskovém šachu 2021"]
[Site "Chess.com"]
[Date "2021.04.17"]
[Round "6"]
[White "g4g5g4g5"]
[Black "Hanicka1517"]
[Result "1-0"]
[WhiteElo "2003"]
[BlackElo "1625"]
[TimeControl "180+1"]
[EndTime "9:56:17 PDT"]
[Termination "Uživatel g4g5g4g5 zvítězil matem"]

1. e4 {[%clk 0:02:57.8]} 1... e6 {[%clk 0:03:00.1]} 2. d3 {[%clk 0:02:56.7]}
2... d5 {[%clk 0:03:00]} 3. Nd2 {[%clk 0:02:50.9]} 3... c5 {[%clk 0:02:58.5]} 4.
Ngf3 {[%clk 0:02:50.7]} 4... Nc6 {[%clk 0:02:57.1]} 5. g3 {[%clk 0:02:50.9]}
5... d4 {[%clk 0:02:51.5]} 6. Bg2 {[%clk 0:02:50.1]} 6... e5 {[%clk 0:02:51.8]}
7. h3 {[%clk 0:02:48.8]} 7... Nf6 {[%clk 0:02:48.4]} 8. O-O {[%clk 0:02:48.6]}
8... Be7 {[%clk 0:02:48.6]} 9. a3 {[%clk 0:02:46.8]} 9... O-O {[%clk 0:02:48.5]}
10. Nh4 {[%clk 0:02:45.5]} 10... Be6 {[%clk 0:02:39.7]} 11. Ndf3 {[%clk
0:02:37.4]} 11... Nd7 {[%clk 0:02:33.4]} 12. Nf5 {[%clk 0:02:34.9]} 12... Bxf5
{[%clk 0:02:27.6]} 13. exf5 {[%clk 0:02:34.5]} 13... Rc8 {[%clk 0:02:18.8]} 14.
Nd2 {[%clk 0:02:29]} 14... b5 {[%clk 0:02:18.2]} 15. Ne4 {[%clk 0:02:28.1]}
15... c4 {[%clk 0:02:16.4]} 16. g4 {[%clk 0:02:25.5]} 16... a5 {[%clk
0:02:12.2]} 17. g5 {[%clk 0:02:20.3]} 17... cxd3 {[%clk 0:01:55.5]} 18. cxd3
{[%clk 0:02:19.4]} 18... b4 {[%clk 0:01:55.3]} 19. Qg4 {[%clk 0:02:04.1]} 19...
bxa3 {[%clk 0:01:51.6]} 20. bxa3 {[%clk 0:02:03.5]} 20... Nc5 {[%clk 0:01:46.5]}
21. Nxc5 {[%clk 0:02:00.1]} 21... Bxc5 {[%clk 0:01:46.1]} 22. Be4 {[%clk
0:01:56.8]} 22... Ne7 {[%clk 0:01:36.5]} 23. f6 {[%clk 0:01:47.1]} 23... Ng6
{[%clk 0:01:36.2]} 24. fxg7 {[%clk 0:01:42.5]} 24... Kxg7 {[%clk 0:01:35.6]} 25.
h4 {[%clk 0:01:41.9]} 25... Be7 {[%clk 0:01:09.7]} 26. h5 {[%clk 0:01:40]} 26...
Nf4 {[%clk 0:01:09]} 27. Qf5 {[%clk 0:01:23.3]} 27... Bxg5 {[%clk 0:00:55.4]}
28. Qxh7+ {[%clk 0:01:17.4]} 28... Kf6 {[%clk 0:00:55.3]} 29. Qf5+ {[%clk
0:01:16.8]} 29... Ke7 {[%clk 0:00:55.5]} 30. Qxg5+ {[%clk 0:01:15.8]} 30... Ke8
{[%clk 0:00:54.6]} 31. Qxe5+ {[%clk 0:01:13.3]} 31... Qe7 {[%clk 0:00:53]} 32.
Qxe7+ {[%clk 0:01:12.5]} 32... Kxe7 {[%clk 0:00:53.3]} 33. Bxf4 {[%clk
0:01:12.3]} 33... Rc3 {[%clk 0:00:50.9]} 34. Rab1 {[%clk 0:01:04.4]} 34... Rg8+
{[%clk 0:00:51.2]} 35. Bg3 {[%clk 0:01:02.8]} 35... Rxa3 {[%clk 0:00:48.3]} 36.
Rb7+ {[%clk 0:01:02.1]} 36... Ke6 {[%clk 0:00:47.4]} 37. Rc1 {[%clk 0:00:58.8]}
37... Rh8 {[%clk 0:00:44.7]} 38. Rc6# {[%clk 0:00:57.4]} 1-0

[Event "Betsys MČR v online bleskovém šachu 2021"]
[Site "Chess.com"]
[Date "2021.04.17"]
[Round "6"]
[White "ReitteN"]
[Black "svTomas"]
[Result "0-1"]
[WhiteElo "1757"]
[BlackElo "1438"]
[TimeControl "180+1"]
[EndTime "9:56:18 PDT"]
[Termination "Uživatel svTomas zvítězil po vzdání soupeře"]

1. c4 {[%clk 0:02:47.2]} 1... Nf6 {[%clk 0:02:59.6]} 2. Nc3 {[%clk 0:02:45.3]}
2... c6 {[%clk 0:02:58.3]} 3. g3 {[%clk 0:02:43.2]} 3... e6 {[%clk 0:02:56.8]}
4. Bg2 {[%clk 0:02:42.9]} 4... Bb4 {[%clk 0:02:56.6]} 5. e3 {[%clk 0:02:37.3]}
5... O-O {[%clk 0:02:55.9]} 6. d4 {[%clk 0:02:26.8]} 6... d5 {[%clk 0:02:55.4]}
7. cxd5 {[%clk 0:02:26.1]} 7... Nxd5 {[%clk 0:02:54.1]} 8. Bd2 {[%clk
0:02:02.9]} 8... Qa5 {[%clk 0:02:35.6]} 9. Qc2 {[%clk 0:01:54.5]} 9... Na6
{[%clk 0:02:21.9]} 10. Nge2 {[%clk 0:01:47.8]} 10... Bxc3 {[%clk 0:02:16.1]} 11.
bxc3 {[%clk 0:01:40]} 11... Qd8 {[%clk 0:02:06.3]} 12. Rb1 {[%clk 0:01:22.5]}
12... Rb8 {[%clk 0:02:01.6]} 13. a3 {[%clk 0:01:18.6]} 13... Nac7 {[%clk
0:01:34.8]} 14. e4 {[%clk 0:01:02.8]} 14... Nf6 {[%clk 0:01:27.9]} 15. O-O
{[%clk 0:01:02.6]} 15... h6 {[%clk 0:01:27.3]} 16. h3 {[%clk 0:00:54.1]} 16...
Nb5 {[%clk 0:01:26.5]} 17. e5 {[%clk 0:00:47.8]} 17... Nd5 {[%clk 0:01:24]} 18.
c4 {[%clk 0:00:21.5]} 18... Nxa3 {[%clk 0:01:23.2]} 19. Qa2 {[%clk 0:00:01.6]}
19... Nxb1 {[%clk 0:01:22.6]} 20. Rxb1 {[%clk 0:00:02.2]} 20... Ne7 {[%clk
0:01:20.2]} 21. d5 {[%clk 0:00:01.8]} 21... cxd5 {[%clk 0:01:19.3]} 22. cxd5
{[%clk 0:00:02.7]} 22... exd5 {[%clk 0:01:18.9]} 23. Nd4 {[%clk 0:00:02.6]}
23... Nf5 {[%clk 0:01:05.7]} 24. Nxf5 {[%clk 0:00:02.5]} 24... Bxf5 {[%clk
0:01:05.1]} 0-1

[Event "Betsys MČR v online bleskovém šachu 2021"]
[Site "Chess.com"]
[Date "2021.04.17"]
[Round "6"]
[White "jhdghaka"]
[Black "xPsylocke"]
[Result "0-1"]
[WhiteElo "1870"]
[BlackElo "2190"]
[TimeControl "180+1"]
[EndTime "9:56:19 PDT"]
[Termination "Uživatel xPsylocke zvítězil po vzdání soupeře"]

1. e4 {[%clk 0:02:59.8]} 1... e5 {[%clk 0:02:59.9]} 2. f4 {[%clk 0:02:59.5]}
2... Bc5 {[%clk 0:02:58.7]} 3. Nf3 {[%clk 0:02:58.5]} 3... d6 {[%clk 0:02:59]}
4. Nc3 {[%clk 0:02:56.4]} 4... Nc6 {[%clk 0:02:56.9]} 5. Bb5 {[%clk 0:02:56.3]}
5... Bd7 {[%clk 0:02:47.1]} 6. d3 {[%clk 0:02:54]} 6... Nge7 {[%clk 0:02:30.1]}
7. Na4 {[%clk 0:02:48.9]} 7... Bb6 {[%clk 0:02:29.4]} 8. Nxb6 {[%clk 0:02:48.9]}
8... axb6 {[%clk 0:02:27.1]} 9. O-O {[%clk 0:02:49.1]} 9... O-O {[%clk
0:02:24.9]} 10. a3 {[%clk 0:02:45.1]} 10... f5 {[%clk 0:02:17.3]} 11. exf5
{[%clk 0:02:37.1]} 11... Nxf5 {[%clk 0:02:06.7]} 12. Bxc6 {[%clk 0:02:12.2]}
12... Bxc6 {[%clk 0:02:06]} 13. fxe5 {[%clk 0:02:12.3]} 13... dxe5 {[%clk
0:01:56.3]} 14. Bg5 {[%clk 0:01:54.4]} 14... Bxf3 {[%clk 0:01:55]} 15. Bxd8
{[%clk 0:01:52]} 15... Bxd1 {[%clk 0:01:54.4]} 16. Bxc7 {[%clk 0:01:38.2]} 16...
Bxc2 {[%clk 0:01:51.8]} 17. Bxe5 {[%clk 0:01:35.7]} 17... Bxd3 {[%clk
0:01:47.1]} 18. Rfd1 {[%clk 0:01:27.4]} 18... Bb5 {[%clk 0:01:46.9]} 19. Bc7
{[%clk 0:01:19]} 19... Ne3 {[%clk 0:01:41]} 20. Rd6 {[%clk 0:01:05.3]} 20...
Rac8 {[%clk 0:01:22.7]} 21. Rxb6 {[%clk 0:00:46.1]} 21... Rxc7 {[%clk 0:01:22]}
22. Rxb5 {[%clk 0:00:46]} 22... Rc2 {[%clk 0:01:20.2]} 23. Rxb7 {[%clk
0:00:44.1]} 23... Rff2 {[%clk 0:01:17.6]} 24. Rb8+ {[%clk 0:00:30.6]} 24... Kf7
{[%clk 0:01:17.3]} 25. Rb7+ {[%clk 0:00:19.7]} 25... Ke8 {[%clk 0:01:15.8]} 26.
Kh1 {[%clk 0:00:05.9]} 26... Rxg2 {[%clk 0:01:13.1]} 27. Rb8+ {[%clk 0:00:03.6]}
27... Kd7 {[%clk 0:01:11.5]} 28. Rb7+ {[%clk 0:00:03.5]} 28... Kc8 {[%clk
0:01:11.3]} 0-1

[Event "Betsys MČR v online bleskovém šachu 2021"]
[Site "Chess.com"]
[Date "2021.04.17"]
[Round "6"]
[White "HonzaRubes95"]
[Black "YawningBagel"]
[Result "0-1"]
[WhiteElo "2474"]
[BlackElo "1967"]
[TimeControl "180+1"]
[EndTime "9:56:20 PDT"]
[Termination "Uživatel YawningBagel zvítězil matem"]

1. e4 {[%clk 0:03:00.9]} 1... c6 {[%clk 0:03:00.3]} 2. d4 {[%clk 0:02:55.9]}
2... d5 {[%clk 0:03:01.2]} 3. exd5 {[%clk 0:02:55.9]} 3... cxd5 {[%clk
0:03:02.1]} 4. c3 {[%clk 0:02:56.4]} 4... Nc6 {[%clk 0:03:02.7]} 5. Bf4 {[%clk
0:02:53.3]} 5... Nf6 {[%clk 0:03:01.5]} 6. Nd2 {[%clk 0:02:53.3]} 6... Bg4
{[%clk 0:03:01.4]} 7. Qb3 {[%clk 0:02:52.9]} 7... Qd7 {[%clk 0:03:01.6]} 8. Ngf3
{[%clk 0:02:51.3]} 8... Bxf3 {[%clk 0:03:01.1]} 9. Nxf3 {[%clk 0:02:50.7]} 9...
e6 {[%clk 0:03:01.6]} 10. Bb5 {[%clk 0:02:45.4]} 10... Bd6 {[%clk 0:03:01.1]}
11. Bxd6 {[%clk 0:02:14.7]} 11... Qxd6 {[%clk 0:03:02]} 12. O-O {[%clk
0:02:14.9]} 12... O-O {[%clk 0:03:02]} 13. Rae1 {[%clk 0:02:14.8]} 13... a6
{[%clk 0:03:00.7]} 14. Bd3 {[%clk 0:02:14.7]} 14... b5 {[%clk 0:02:57.4]} 15. a3
{[%clk 0:02:14.2]} 15... Rab8 {[%clk 0:02:55.6]} 16. Ne5 {[%clk 0:02:12.5]}
16... Qc7 {[%clk 0:02:50.1]} 17. Qd1 {[%clk 0:02:08.1]} 17... a5 {[%clk
0:02:45.4]} 18. f4 {[%clk 0:02:04]} 18... b4 {[%clk 0:02:44.2]} 19. axb4 {[%clk
0:02:03.4]} 19... axb4 {[%clk 0:02:44.6]} 20. Re3 {[%clk 0:01:56.2]} 20... bxc3
{[%clk 0:02:43.2]} 21. bxc3 {[%clk 0:01:56.9]} 21... Ne4 {[%clk 0:02:23.3]} 22.
Bxe4 {[%clk 0:01:49.7]} 22... dxe4 {[%clk 0:02:23.4]} 23. Qh5 {[%clk 0:01:30.3]}
23... g6 {[%clk 0:02:11.3]} 24. Qh4 {[%clk 0:01:20.5]} 24... f5 {[%clk
0:02:09.8]} 25. Rg3 {[%clk 0:01:01.5]} 25... Nxe5 {[%clk 0:01:56.5]} 26. fxe5
{[%clk 0:01:01.7]} 26... Rb3 {[%clk 0:01:51.6]} 27. Qh3 {[%clk 0:00:48.8]} 27...
Kg7 {[%clk 0:01:48.5]} 28. Re3 {[%clk 0:00:18.8]} 28... h6 {[%clk 0:01:43.7]}
29. g4 {[%clk 0:00:17]} 29... f4 {[%clk 0:01:41.5]} 30. Rxe4 {[%clk 0:00:17.4]}
30... Rxc3 {[%clk 0:01:40.1]} 31. Qg2 {[%clk 0:00:17.1]} 31... f3 {[%clk
0:01:35.7]} 32. Qd2 {[%clk 0:00:14.5]} 32... Rc2 {[%clk 0:01:28.4]} 33. Qe3
{[%clk 0:00:13.8]} 33... Rg2+ {[%clk 0:01:25.1]} 34. Kh1 {[%clk 0:00:13.3]}
34... Qc2 {[%clk 0:01:23.1]} 35. Rxf3 {[%clk 0:00:09.7]} 35... Rxh2+ {[%clk
0:01:20.4]} 36. Kg1 {[%clk 0:00:09.3]} 36... Qg2# {[%clk 0:01:21.3]} 0-1

[Event "Betsys MČR v online bleskovém šachu 2021"]
[Site "Chess.com"]
[Date "2021.04.17"]
[Round "6"]
[White "Dasty78"]
[Black "doktorovak"]
[Result "1-0"]
[WhiteElo "2018"]
[BlackElo "1668"]
[TimeControl "180+1"]
[EndTime "9:56:20 PDT"]
[Termination "Uživatel Dasty78 zvítězil po vzdání soupeře"]

1. e4 {[%clk 0:02:59.5]} 1... c5 {[%clk 0:02:59.5]} 2. Nf3 {[%clk 0:02:58.1]}
2... Nc6 {[%clk 0:02:59.5]} 3. Nc3 {[%clk 0:02:57.5]} 3... e6 {[%clk 0:02:59.1]}
4. d4 {[%clk 0:02:55.3]} 4... cxd4 {[%clk 0:02:58.6]} 5. Nxd4 {[%clk 0:02:55.6]}
5... a6 {[%clk 0:02:58.9]} 6. g3 {[%clk 0:02:55.6]} 6... Bc5 {[%clk 0:02:57.8]}
7. Nb3 {[%clk 0:02:47.5]} 7... Ba7 {[%clk 0:02:57.2]} 8. Bg2 {[%clk 0:02:46.8]}
8... Nge7 {[%clk 0:02:56.4]} 9. Qg4 {[%clk 0:02:29.6]} 9... O-O {[%clk
0:02:53.7]} 10. O-O {[%clk 0:02:28.9]} 10... d5 {[%clk 0:02:52.9]} 11. exd5
{[%clk 0:02:12.5]} 11... exd5 {[%clk 0:02:51.9]} 12. Qh4 {[%clk 0:02:12.6]}
12... d4 {[%clk 0:02:46.4]} 13. Ne4 {[%clk 0:02:11.3]} 13... Qd7 {[%clk
0:02:21.4]} 14. Bf4 {[%clk 0:01:53.3]} 14... Ng6 {[%clk 0:02:18.9]} 15. Qh5
{[%clk 0:01:20]} 15... Nxf4 {[%clk 0:02:18.2]} 16. gxf4 {[%clk 0:01:19.3]} 16...
Qg4 {[%clk 0:02:11.9]} 17. Qg5 {[%clk 0:01:10.8]} 17... f6 {[%clk 0:02:02.8]}
18. Qxg4 {[%clk 0:01:08.3]} 18... Bxg4 {[%clk 0:02:02.4]} 19. Nd6 {[%clk
0:01:07]} 19... Be6 {[%clk 0:01:28]} 20. f5 {[%clk 0:00:51.7]} 20... Bb8 {[%clk
0:01:11.6]} 21. fxe6 {[%clk 0:00:40.9]} 21... Bxd6 {[%clk 0:01:11]} 22. Bd5
{[%clk 0:00:40.9]} 22... Rfe8 {[%clk 0:01:07.8]} 23. Rfe1 {[%clk 0:00:36.4]}
23... Re7 {[%clk 0:01:03.7]} 24. Bxc6 {[%clk 0:00:33]} 24... bxc6 {[%clk
0:01:03.4]} 25. Nxd4 {[%clk 0:00:33]} 25... Rc8 {[%clk 0:00:58.5]} 26. Nf5
{[%clk 0:00:32.3]} 26... Bxh2+ {[%clk 0:00:44.1]} 27. Kxh2 {[%clk 0:00:31.2]}
27... Ree8 {[%clk 0:00:44.3]} 28. Nd6 {[%clk 0:00:28.5]} 1-0

[Event "Betsys MČR v online bleskovém šachu 2021"]
[Site "Chess.com"]
[Date "2021.04.17"]
[Round "6"]
[White "vadoto"]
[Black "Sandokanom"]
[Result "0-1"]
[WhiteElo "1355"]
[BlackElo "1758"]
[TimeControl "180+1"]
[EndTime "9:56:24 PDT"]
[Termination "Uživatel Sandokanom zvítězil matem"]

1. e4 {[%clk 0:02:58.6]} 1... c5 {[%clk 0:02:59.9]} 2. Nf3 {[%clk 0:02:58]} 2...
e6 {[%clk 0:03:00.4]} 3. Nc3 {[%clk 0:02:57.7]} 3... Nf6 {[%clk 0:03:01.3]} 4.
d4 {[%clk 0:02:56.1]} 4... cxd4 {[%clk 0:03:00.9]} 5. Nxd4 {[%clk 0:02:55.5]}
5... Bb4 {[%clk 0:03:00.8]} 6. f3 {[%clk 0:02:48]} 6... d5 {[%clk 0:02:58]} 7.
Bd2 {[%clk 0:02:47.1]} 7... Bxc3 {[%clk 0:02:55.6]} 8. Bxc3 {[%clk 0:02:46]}
8... dxe4 {[%clk 0:02:56.5]} 9. fxe4 {[%clk 0:02:36.1]} 9... Nxe4 {[%clk
0:02:57.4]} 10. Bd3 {[%clk 0:02:34.3]} 10... Nxc3 {[%clk 0:02:55.3]} 11. bxc3
{[%clk 0:02:33.4]} 11... Nd7 {[%clk 0:02:53]} 12. Qe2 {[%clk 0:02:30.9]} 12...
Nf6 {[%clk 0:02:51.6]} 13. O-O {[%clk 0:02:30.1]} 13... O-O {[%clk 0:02:49.2]}
14. Qe3 {[%clk 0:01:47.1]} 14... a6 {[%clk 0:02:42.4]} 15. Rad1 {[%clk
0:01:27.9]} 15... Nd5 {[%clk 0:02:37.9]} 16. Qe4 {[%clk 0:01:22]} 16... g6
{[%clk 0:02:32.6]} 17. Qe5 {[%clk 0:01:13.9]} 17... Nxc3 {[%clk 0:02:23.7]} 18.
Nxe6 {[%clk 0:00:59.1]} 18... Qb6+ {[%clk 0:02:15.3]} 19. Kh1 {[%clk 0:00:53.1]}
19... Bxe6 {[%clk 0:02:06.7]} 20. Qxc3 {[%clk 0:00:51.4]} 20... Bxa2 {[%clk
0:02:03.2]} 21. Bc4 {[%clk 0:00:44.3]} 21... Bxc4 {[%clk 0:02:01.7]} 22. Qxc4
{[%clk 0:00:44.3]} 22... Rac8 {[%clk 0:02:00.8]} 23. Qd3 {[%clk 0:00:40.6]}
23... Qc6 {[%clk 0:01:57.4]} 24. Rd2 {[%clk 0:00:37.7]} 24... b5 {[%clk
0:01:51.9]} 25. Qd4 {[%clk 0:00:31.7]} 25... Qc4 {[%clk 0:01:49.9]} 26. Qxc4
{[%clk 0:00:21.7]} 26... Rxc4 {[%clk 0:01:50.8]} 27. Rfd1 {[%clk 0:00:20]} 27...
Rfc8 {[%clk 0:01:47.3]} 28. Rd8+ {[%clk 0:00:17.6]} 28... Rxd8 {[%clk
0:01:45.6]} 29. Rxd8+ {[%clk 0:00:17.7]} 29... Kg7 {[%clk 0:01:46.5]} 30. g3
{[%clk 0:00:14.8]} 30... Rxc2 {[%clk 0:01:45.4]} 31. Rd6 {[%clk 0:00:14.6]}
31... a5 {[%clk 0:01:44.8]} 32. Ra6 {[%clk 0:00:14.7]} 32... a4 {[%clk
0:01:44.7]} 33. Ra5 {[%clk 0:00:15]} 33... Rb2 {[%clk 0:01:43]} 34. Ra8 {[%clk
0:00:11.6]} 34... Rb3 {[%clk 0:01:40.7]} 35. Ra5 {[%clk 0:00:10.3]} 35... a3
{[%clk 0:01:40.7]} 36. Ra4 {[%clk 0:00:09.8]} 36... b4 {[%clk 0:01:40.4]} 37.
Ra6 {[%clk 0:00:08.3]} 37... Rb2 {[%clk 0:01:38.4]} 38. Ra4 {[%clk 0:00:07.5]}
38... b3 {[%clk 0:01:37.2]} 39. Ra7 {[%clk 0:00:06.5]} 39... a2 {[%clk
0:01:36.9]} 40. Rxa2 {[%clk 0:00:05.7]} 40... bxa2 {[%clk 0:01:36.6]} 41. h4
{[%clk 0:00:05.5]} 41... a1=R# {[%clk 0:01:34.9]} 0-1

[Event "Betsys MČR v online bleskovém šachu 2021"]
[Site "Chess.com"]
[Date "2021.04.17"]
[Round "6"]
[White "TCTCGTGCTATG"]
[Black "fera_v"]
[Result "0-1"]
[WhiteElo "1920"]
[BlackElo "2237"]
[TimeControl "180+1"]
[EndTime "9:56:26 PDT"]
[Termination "Uživatel fera_v zvítězil matem"]

1. e4 {[%clk 0:03:00.9]} 1... e6 {[%clk 0:02:59.7]} 2. d4 {[%clk 0:03:00]} 2...
d5 {[%clk 0:03:00.1]} 3. Nd2 {[%clk 0:02:59.8]} 3... Nc6 {[%clk 0:02:59.6]} 4.
Ngf3 {[%clk 0:02:53.6]} 4... Nf6 {[%clk 0:02:57.7]} 5. c3 {[%clk 0:02:50.6]}
5... dxe4 {[%clk 0:02:53.6]} 6. Ng5 {[%clk 0:02:42.6]} 6... e5 {[%clk
0:02:53.7]} 7. Ndxe4 {[%clk 0:02:38.8]} 7... Nxe4 {[%clk 0:02:52]} 8. Nxe4
{[%clk 0:02:36]} 8... exd4 {[%clk 0:02:51.9]} 9. Bd3 {[%clk 0:02:27.9]} 9...
dxc3 {[%clk 0:02:48.7]} 10. bxc3 {[%clk 0:02:27.7]} 10... Ne5 {[%clk 0:02:42]}
11. Qa4+ {[%clk 0:02:13.3]} 11... Bd7 {[%clk 0:02:33.5]} 12. Bb5 {[%clk
0:02:09.1]} 12... Nd3+ {[%clk 0:02:19.6]} 13. Kf1 {[%clk 0:01:57.2]} 13... Nxc1
{[%clk 0:02:05.1]} 14. Rxc1 {[%clk 0:01:54.5]} 14... a6 {[%clk 0:02:03.4]} 15.
Re1 {[%clk 0:01:46.5]} 15... Be7 {[%clk 0:01:51.4]} 16. Bxd7+ {[%clk 0:01:41.3]}
16... Qxd7 {[%clk 0:01:50.5]} 17. Qb3 {[%clk 0:01:41.3]} 17... Qb5+ {[%clk
0:01:45.1]} 18. Qxb5+ {[%clk 0:01:39.9]} 18... axb5 {[%clk 0:01:45.5]} 19. Re2
{[%clk 0:01:39.2]} 19... O-O {[%clk 0:01:39.2]} 20. g3 {[%clk 0:01:39.2]} 20...
f5 {[%clk 0:01:34.6]} 21. Nd2 {[%clk 0:01:32.1]} 21... Bf6 {[%clk 0:01:32.4]}
22. Kg2 {[%clk 0:01:30.5]} 22... Bxc3 {[%clk 0:01:30.9]} 23. Nb3 {[%clk
0:01:29]} 23... b6 {[%clk 0:01:24.7]} 24. Rc1 {[%clk 0:01:27.4]} 24... b4 {[%clk
0:01:24.8]} 25. Re7 {[%clk 0:01:25.5]} 25... c5 {[%clk 0:01:22.2]} 26. Re6
{[%clk 0:01:24.4]} 26... Rf6 {[%clk 0:01:20.5]} 27. Re7 {[%clk 0:01:20.4]} 27...
c4 {[%clk 0:01:09.1]} 28. Na1 {[%clk 0:01:12.1]} 28... Rxa2 {[%clk 0:01:05.4]}
29. Nc2 {[%clk 0:01:12.2]} 29... Rf7 {[%clk 0:01:01]} 30. Re6 {[%clk 0:01:06.6]}
30... Bd2 {[%clk 0:00:58]} 31. Nxb4 {[%clk 0:00:45.3]} 31... Bxb4 {[%clk
0:00:55.9]} 32. Rxc4 {[%clk 0:00:45.3]} 32... Bc5 {[%clk 0:00:55.7]} 33. Rf4
{[%clk 0:00:39.4]} 33... g5 {[%clk 0:00:54.5]} 34. Rf3 {[%clk 0:00:38.7]} 34...
g4 {[%clk 0:00:54.5]} 35. Rd3 {[%clk 0:00:38]} 35... Rxf2+ {[%clk 0:00:52.7]}
36. Kh1 {[%clk 0:00:37.9]} 36... Rf1+ {[%clk 0:00:50.3]} 37. Kg2 {[%clk
0:00:37.9]} 37... Rg1# {[%clk 0:00:50.3]} 0-1

[Event "Betsys MČR v online bleskovém šachu 2021"]
[Site "Chess.com"]
[Date "2021.04.17"]
[Round "6"]
[White "Tomasn2003"]
[Black "pavelchrz"]
[Result "0-1"]
[WhiteElo "1135"]
[BlackElo "1702"]
[TimeControl "180+1"]
[EndTime "9:56:27 PDT"]
[Termination "Uživatel pavelchrz zvítězil po vzdání soupeře"]

1. e4 {[%clk 0:03:00.9]} 1... e5 {[%clk 0:02:49.3]} 2. Nf3 {[%clk 0:03:00.8]}
2... Nc6 {[%clk 0:02:49.7]} 3. Bb5 {[%clk 0:03:00.2]} 3... a6 {[%clk 0:02:47.5]}
4. Bxc6 {[%clk 0:03:00.2]} 4... dxc6 {[%clk 0:02:47.7]} 5. d4 {[%clk 0:03:00.2]}
5... exd4 {[%clk 0:02:46]} 6. Qxd4 {[%clk 0:03:00.1]} 6... Bd7 {[%clk
0:02:45.3]} 7. Ne5 {[%clk 0:02:56.9]} 7... Nf6 {[%clk 0:02:42.1]} 8. Nxd7 {[%clk
0:02:56.2]} 8... Qxd7 {[%clk 0:02:38.7]} 9. Qxd7+ {[%clk 0:02:55.5]} 9... Kxd7
{[%clk 0:02:38.7]} 10. Nc3 {[%clk 0:02:54]} 10... Ke6 {[%clk 0:02:38.7]} 11. O-O
{[%clk 0:02:53.3]} 11... Bc5 {[%clk 0:02:37.8]} 12. Be3 {[%clk 0:02:47.9]} 12...
Bxe3 {[%clk 0:02:29]} 13. fxe3 {[%clk 0:02:47.9]} 13... Rad8 {[%clk 0:02:29.7]}
14. Rad1 {[%clk 0:02:45.6]} 14... Rd6 {[%clk 0:02:22.7]} 15. h3 {[%clk
0:02:43.4]} 15... Rhd8 {[%clk 0:02:22.2]} 16. Rxd6+ {[%clk 0:02:40.3]} 16...
Rxd6 {[%clk 0:02:22]} 17. Rf2 {[%clk 0:02:32.9]} 17... b5 {[%clk 0:02:21]} 18.
a3 {[%clk 0:02:31.7]} 18... a5 {[%clk 0:02:21.1]} 19. b4 {[%clk 0:02:27.8]}
19... a4 {[%clk 0:02:18.9]} 20. Kh2 {[%clk 0:02:26.5]} 20... h5 {[%clk
0:02:03.9]} 21. Kg3 {[%clk 0:02:25.2]} 21... g6 {[%clk 0:02:01.7]} 22. Kf4
{[%clk 0:02:16]} 22... Nd7 {[%clk 0:01:50.3]} 23. Kg5 {[%clk 0:02:09.4]} 23...
Ne5 {[%clk 0:01:12.9]} 24. Rf6+ {[%clk 0:02:01.8]} 24... Ke7 {[%clk 0:01:12.9]}
25. Rxd6 {[%clk 0:01:59]} 25... cxd6 {[%clk 0:01:12.4]} 26. Kf4 {[%clk
0:01:51.1]} 26... Nc4 {[%clk 0:01:12.2]} 27. Nb1 {[%clk 0:01:50.5]} 27... Ke6
{[%clk 0:01:08.4]} 28. g4 {[%clk 0:01:50.2]} 28... hxg4 {[%clk 0:01:05.1]} 29.
hxg4 {[%clk 0:01:49.8]} 29... f6 {[%clk 0:01:00.1]} 30. Kf3 {[%clk 0:01:34.5]}
30... g5 {[%clk 0:00:58.2]} 31. c3 {[%clk 0:01:29.9]} 31... Ke5 {[%clk
0:00:57.7]} 32. Kf2 {[%clk 0:01:07.1]} 32... Kxe4 {[%clk 0:00:57.6]} 33. Ke2
{[%clk 0:01:07.1]} 33... d5 {[%clk 0:00:50.6]} 34. Nd2+ {[%clk 0:01:04.7]} 34...
Nxd2 {[%clk 0:00:49.7]} 35. Kxd2 {[%clk 0:01:04.9]} 35... Kf3 {[%clk 0:00:50.2]}
36. Kd3 {[%clk 0:01:05.1]} 36... Kxg4 {[%clk 0:00:46.4]} 37. Ke2 {[%clk
0:01:00.7]} 37... Kf5 {[%clk 0:00:43.8]} 38. Kf3 {[%clk 0:01:00.5]} 38... g4+
{[%clk 0:00:43.7]} 39. Kf2 {[%clk 0:00:57.6]} 39... Ke4 {[%clk 0:00:43.2]} 40.
Kg3 {[%clk 0:00:57.5]} 40... f5 {[%clk 0:00:43.6]} 41. Kf2 {[%clk 0:00:57]}
41... g3+ {[%clk 0:00:43.5]} 42. Kxg3 {[%clk 0:00:56.9]} 42... Kxe3 {[%clk
0:00:44]} 0-1

[Event "Betsys MČR v online bleskovém šachu 2021"]
[Site "Chess.com"]
[Date "2021.04.17"]
[Round "6"]
[White "OlifantCZ"]
[Black "HonzaVykouk"]
[Result "0-1"]
[WhiteElo "2287"]
[BlackElo "2688"]
[TimeControl "180+1"]
[EndTime "9:56:29 PDT"]
[Termination "Uživatel HonzaVykouk zvítězil po vzdání soupeře"]

1. c4 {[%clk 0:03:00.9]} 1... Nf6 {[%clk 0:02:59.5]} 2. g3 {[%clk 0:03:00.9]}
2... g6 {[%clk 0:03:00]} 3. Bg2 {[%clk 0:03:01]} 3... Bg7 {[%clk 0:03:00.7]} 4.
Nc3 {[%clk 0:03:01.6]} 4... O-O {[%clk 0:03:01.4]} 5. e4 {[%clk 0:03:02.2]} 5...
d6 {[%clk 0:03:02.3]} 6. Nge2 {[%clk 0:03:02.4]} 6... c6 {[%clk 0:03:03]} 7. O-O
{[%clk 0:03:02.1]} 7... a6 {[%clk 0:03:03.6]} 8. h3 {[%clk 0:02:57.9]} 8... Nfd7
{[%clk 0:03:03]} 9. f4 {[%clk 0:02:49.3]} 9... b5 {[%clk 0:03:03.1]} 10. d3
{[%clk 0:02:45.6]} 10... Bb7 {[%clk 0:03:02.3]} 11. f5 {[%clk 0:02:42.5]} 11...
bxc4 {[%clk 0:02:59.6]} 12. dxc4 {[%clk 0:02:42.2]} 12... Ne5 {[%clk 0:03:00.1]}
13. b3 {[%clk 0:02:41.7]} 13... a5 {[%clk 0:02:57.5]} 14. Kh2 {[%clk 0:02:40.2]}
14... a4 {[%clk 0:02:45.3]} 15. Be3 {[%clk 0:02:32.2]} 15... axb3 {[%clk
0:02:43.4]} 16. axb3 {[%clk 0:02:31.7]} 16... Rxa1 {[%clk 0:02:43]} 17. Qxa1
{[%clk 0:02:31.6]} 17... Na6 {[%clk 0:02:41.2]} 18. Qc1 {[%clk 0:02:20.1]} 18...
Nb4 {[%clk 0:02:39.6]} 19. Bh6 {[%clk 0:02:14.9]} 19... Nbd3 {[%clk 0:02:16.5]}
20. Qd2 {[%clk 0:02:12.7]} 20... Nc5 {[%clk 0:02:15.9]} 21. Bxg7 {[%clk
0:02:07.1]} 21... Kxg7 {[%clk 0:02:16.8]} 22. b4 {[%clk 0:02:06.8]} 22... Ncd7
{[%clk 0:02:12.8]} 23. Qa2 {[%clk 0:01:52.6]} 23... Qb6 {[%clk 0:02:08.4]} 24.
Qb3 {[%clk 0:01:35.1]} 24... Ra8 {[%clk 0:01:59.5]} 25. fxg6 {[%clk 0:01:28.3]}
25... hxg6 {[%clk 0:01:58.9]} 26. b5 {[%clk 0:01:03.7]} 26... Nc5 {[%clk
0:01:54.7]} 27. Qb4 {[%clk 0:01:03.2]} 27... Ncd3 {[%clk 0:01:28.4]} 28. Qb3
{[%clk 0:01:01.3]} 28... Qc5 {[%clk 0:01:23.5]} 29. bxc6 {[%clk 0:00:52.7]}
29... Bxc6 {[%clk 0:01:24.4]} 30. Nd5 {[%clk 0:00:51.1]} 30... Bxd5 {[%clk
0:01:20]} 31. cxd5 {[%clk 0:00:50]} 31... Ra3 {[%clk 0:01:17.7]} 32. Qb7 {[%clk
0:00:47.3]} 32... Ra7 {[%clk 0:01:10.1]} 33. Qb8 {[%clk 0:00:46.9]} 33... Ra2
{[%clk 0:01:08.2]} 34. Nf4 {[%clk 0:00:19.7]} 34... Nxf4 {[%clk 0:01:08.1]} 35.
gxf4 {[%clk 0:00:19.6]} 35... Qc2 {[%clk 0:01:08.6]} 36. Rg1 {[%clk 0:00:18.7]}
36... Nf3+ {[%clk 0:01:08.5]} 0-1